[Event "January 2 Early 2024"]
[Site "https://www.chess.com"]
[Date "2024.01.02"]
[Round "7"]
[White "Minina, Veronika"]
[Black "Herman, Daniel"]
[Result "0-1"]
[Board "158"]
[TimeControl "180+1"]
[WhiteFideId "4174780"]
[BlackFideId "30935008"]
[WhiteElo "2285"]
[BlackElo "2410"]
[WhiteTeam "RUS"]
[BlackTeam "USA"]
[WhiteClock "0:00:02"]
[BlackClock "0:00:19"]

1. Nf3 {[%clk 0:03:00]}  d5 {[%clk 0:02:59]} 2. g3 {[%clk 0:03:00]}  c6 {[%clk 0:02:58]} 3. Bg2 {[%clk 0:03:01]}  Nf6 {[%clk 0:02:59]} 4. c4 {[%clk 0:03:02]}  dxc4 {[%clk 0:02:54]} 5. O-O {[%clk 0:02:56]}  g6 {[%clk 0:02:42]} 6. a4 {[%clk 0:02:47]}  Bg7 {[%clk 0:02:41]} 7. Na3 {[%clk 0:02:47]}  O-O {[%clk 0:02:23]} 8. Nxc4 {[%clk 0:02:47]}  Be6 {[%clk 0:02:24]} 9. d3 {[%clk 0:02:30]}  Nbd7 {[%clk 0:02:20]} 10. Qc2 {[%clk 0:02:30]}  h6 {[%clk 0:02:12]} 11. Nd4 {[%clk 0:02:18]}  Bd5 {[%clk 0:02:06]} 12. e4 {[%clk 0:02:14]}  Bxc4 {[%clk 0:01:46]} 13. dxc4 {[%clk 0:02:13]}  e5 {[%clk 0:01:23]} 14. Nf3 {[%clk 0:02:04]}  Qe7 {[%clk 0:01:21]} 15. a5 {[%clk 0:02:00]}  Kh7 {[%clk 0:01:14]} 16. b3 {[%clk 0:01:59]}  Rfd8 {[%clk 0:01:13]} 17. Ba3 {[%clk 0:01:59]}  Qe6 {[%clk 0:00:55]} 18. Rfd1 {[%clk 0:01:52]}  Nf8 {[%clk 0:00:52]} 19. Qc3 {[%clk 0:01:36]}  Nxe4 {[%clk 0:00:51]} 20. Qb4 {[%clk 0:01:27]}  Rd7 {[%clk 0:00:30]} 21. Rxd7 {[%clk 0:01:06]}  Qxd7 {[%clk 0:00:31]} 22. Rc1 {[%clk 0:00:55]}  Ne6 {[%clk 0:00:31]} 23. Qe1 {[%clk 0:00:52]}  f5 {[%clk 0:00:29]} 24. Nh4 {[%clk 0:00:50]}  N4g5 {[%clk 0:00:23]} 25. Rd1 {[%clk 0:00:50]}  Qe8 {[%clk 0:00:19]} 26. a6 {[%clk 0:00:46]}  bxa6 {[%clk 0:00:19]} 27. Rd6 {[%clk 0:00:44]}  Rd8 {[%clk 0:00:16]} 28. Bxc6 {[%clk 0:00:41]}  Qg8 {[%clk 0:00:12]} 29. Qd1 {[%clk 0:00:29]}  Nd4 {[%clk 0:00:11]} 30. Bd5 {[%clk 0:00:26]}  Rxd6 {[%clk 0:00:10]} 31. Bxd6 {[%clk 0:00:23]}  Qd8 {[%clk 0:00:09]} 32. c5 {[%clk 0:00:20]}  Nb5 {[%clk 0:00:08]} 33. Bb7 {[%clk 0:00:18]}  e4 {[%clk 0:00:07]} 34. Ng2 {[%clk 0:00:09]}  Nf7 {[%clk 0:00:08]} 35. Nf4 {[%clk 0:00:08]}  Nbxd6 {[%clk 0:00:07]} 36. cxd6 {[%clk 0:00:07]}  Qxd6 {[%clk 0:00:07]} 37. Qxd6 {[%clk 0:00:03]}  Nxd6 {[%clk 0:00:08]} 38. Bxa6 {[%clk 0:00:02]}  Bd4 {[%clk 0:00:08]} 39. Be2 {[%clk 0:00:02]}  g5 {[%clk 0:00:08]} 40. Ne6 {[%clk 0:00:02]}  Bb6 {[%clk 0:00:08]} 41. b4 {[%clk 0:00:03]}  Kg6 {[%clk 0:00:07]} 42. Kf1 {[%clk 0:00:03]}  Kf6 {[%clk 0:00:07]} 43. Nc5 {[%clk 0:00:04]}  Ke5 {[%clk 0:00:05]} 44. Nb3 {[%clk 0:00:04]}  f4 {[%clk 0:00:05]} 45. gxf4+ {[%clk 0:00:05]}  gxf4 {[%clk 0:00:06]} 46. h4 {[%clk 0:00:05]}  f3 {[%clk 0:00:06]} 47. Ba6 {[%clk 0:00:06]}  Nf5 {[%clk 0:00:06]} 48. h5 {[%clk 0:00:05]}  e3 {[%clk 0:00:06]} 49. fxe3 {[%clk 0:00:06]}  Nxe3+ {[%clk 0:00:07]} 50. Kg1 {[%clk 0:00:05]}  Nd5+ {[%clk 0:00:07]} 51. Kh2 {[%clk 0:00:05]}  Nxb4 {[%clk 0:00:07]} 52. Bf1 {[%clk 0:00:05]}  a5 {[%clk 0:00:07]} 53. Nd2 {[%clk 0:00:05]}  Kf4 {[%clk 0:00:07]} 54. Nc4 {[%clk 0:00:05]}  Bc7 {[%clk 0:00:07]} 55. Nb2 {[%clk 0:00:06]}  Ke3+ {[%clk 0:00:05]} 56. Kg1 {[%clk 0:00:06]}  f2+ {[%clk 0:00:05]} 57. Kg2 {[%clk 0:00:06]}  Nc2 {[%clk 0:00:05]} 58. Nc4+ {[%clk 0:00:06]}  Kd4 {[%clk 0:00:05]} 59. Nd2 {[%clk 0:00:06]}  a4 {[%clk 0:00:04]} 60. Kxf2 {[%clk 0:00:06]}  a3 {[%clk 0:00:04]} 61. Nb3+ {[%clk 0:00:06]}  Kc3 {[%clk 0:00:04]} 62. Nc1 {[%clk 0:00:05]}  Kb2 {[%clk 0:00:04]} 63. Nd3+ {[%clk 0:00:06]}  Kb1 {[%clk 0:00:05]} 64. Nc5 {[%clk 0:00:04]}  Bb6 {[%clk 0:00:05]} 65. Ke2 {[%clk 0:00:03]}  Bxc5 {[%clk 0:00:06]} 66. Kd2 {[%clk 0:00:04]}  Kb2 {[%clk 0:00:06]} 67. Bc4 {[%clk 0:00:05]}  Nb4 {[%clk 0:00:06]} 68. Be6 {[%clk 0:00:05]}  a2 {[%clk 0:00:07]} 69. Bxa2 {[%clk 0:00:05]}  Nxa2 {[%clk 0:00:08]} 70. Kd3 {[%clk 0:00:06]}  Be7 {[%clk 0:00:09]} 71. Ke4 {[%clk 0:00:07]}  Bg5 {[%clk 0:00:09]} 72. Kf5 {[%clk 0:00:08]}  Kc3 {[%clk 0:00:10]} 73. Kg6 {[%clk 0:00:09]}  Kd4 {[%clk 0:00:11]} 74. Kh7 {[%clk 0:00:10]}  Ke4 {[%clk 0:00:11]} 75. Kg6 {[%clk 0:00:10]}  Kf4 {[%clk 0:00:12]} 76. Kf7 {[%clk 0:00:11]}  Kg4 {[%clk 0:00:13]} 77. Kg6 {[%clk 0:00:12]}  Kh4 {[%clk 0:00:14]} 78. Kf5 {[%clk 0:00:13]}  Kxh5 {[%clk 0:00:15]} 79. Ke4 {[%clk 0:00:13]}  Kg4 {[%clk 0:00:15]} 80. Kd3 {[%clk 0:00:14]}  h5 {[%clk 0:00:16]} 81. Ke2 {[%clk 0:00:11]}  Kg3 {[%clk 0:00:17]} 82. Kf1 {[%clk 0:00:11]}  Be3 {[%clk 0:00:18]} 83. Ke2 {[%clk 0:00:02]}  h4 {[%clk 0:00:19]} 0-1

[Event "January 2 Early 2024"]
[Site "https://www.chess.com"]
[Date "2024.01.02"]
[Round "7"]
[White "Mazurkiewicz, Michal"]
[Black "Slavin, Alexey"]
[Result "1-0"]
[Board "161"]
[TimeControl "180+1"]
[WhiteFideId "1124943"]
[BlackFideId "24104388"]
[WhiteElo "2402"]
[BlackElo "2250"]
[WhiteTeam "POL"]
[BlackTeam "RUS"]
[WhiteClock "0:00:15"]
[BlackClock "0:00:40"]

1. e4 {[%clk 0:03:00]}  Nc6 {[%clk 0:02:59]} 2. Nf3 {[%clk 0:02:59]}  d6 {[%clk 0:02:59]} 3. d4 {[%clk 0:02:59]}  Nf6 {[%clk 0:03:00]} 4. Nc3 {[%clk 0:02:58]}  Bg4 {[%clk 0:03:00]} 5. Be2 {[%clk 0:02:57]}  e5 {[%clk 0:03:00]} 6. d5 {[%clk 0:02:41]}  Ne7 {[%clk 0:03:01]} 7. O-O {[%clk 0:02:38]}  Ng6 {[%clk 0:03:00]} 8. h3 {[%clk 0:02:35]}  Bd7 {[%clk 0:03:01]} 9. Nh2 {[%clk 0:02:01]}  Be7 {[%clk 0:03:00]} 10. Ng4 {[%clk 0:01:59]}  O-O {[%clk 0:02:59]} 11. Nxf6+ {[%clk 0:01:57]}  Bxf6 {[%clk 0:02:59]} 12. Bg4 {[%clk 0:01:57]}  Be7 {[%clk 0:02:55]} 13. Be3 {[%clk 0:01:46]}  a6 {[%clk 0:02:55]} 14. a4 {[%clk 0:01:44]}  f5 {[%clk 0:02:53]} 15. exf5 {[%clk 0:01:43]}  Bxf5 {[%clk 0:02:53]} 16. Bxf5 {[%clk 0:01:43]}  Rxf5 {[%clk 0:02:53]} 17. Ne4 {[%clk 0:01:43]}  Qd7 {[%clk 0:02:53]} 18. Qg4 {[%clk 0:01:40]}  Rd8 {[%clk 0:02:39]} 19. c4 {[%clk 0:01:35]}  a5 {[%clk 0:02:36]} 20. Rfb1 {[%clk 0:01:23]}  b6 {[%clk 0:02:35]} 21. b4 {[%clk 0:01:22]}  axb4 {[%clk 0:02:35]} 22. Rxb4 {[%clk 0:01:23]}  Nf4 {[%clk 0:02:35]} 23. Bxf4 {[%clk 0:01:22]}  Rxf4 {[%clk 0:02:35]} 24. Qxd7 {[%clk 0:01:22]}  Rxd7 {[%clk 0:02:35]} 25. f3 {[%clk 0:01:22]}  Rd8 {[%clk 0:02:23]} 26. a5 {[%clk 0:01:21]}  Ra8 {[%clk 0:02:19]} 27. a6 {[%clk 0:01:03]}  Kf8 {[%clk 0:02:01]} 28. Nc3 {[%clk 0:00:44]}  Ke8 {[%clk 0:02:00]} 29. Nb5 {[%clk 0:00:44]}  Kd7 {[%clk 0:02:01]} 30. a7 {[%clk 0:00:35]}  Kc8 {[%clk 0:01:55]} 31. Rf1 {[%clk 0:00:27]}  Kb7 {[%clk 0:01:55]} 32. g3 {[%clk 0:00:27]}  Rf7 {[%clk 0:01:53]} 33. Rb2 {[%clk 0:00:19]}  Bg5 {[%clk 0:01:51]} 34. Kg2 {[%clk 0:00:15]}  Be3 {[%clk 0:01:50]} 35. Re2 {[%clk 0:00:16]}  Bc5 {[%clk 0:01:50]} 36. f4 {[%clk 0:00:16]}  Raf8 {[%clk 0:01:42]} 37. Ree1 {[%clk 0:00:17]}  exf4 {[%clk 0:01:27]} 38. Rxf4 {[%clk 0:00:16]}  Rxf4 {[%clk 0:01:26]} 39. gxf4 {[%clk 0:00:17]}  Rc8 {[%clk 0:00:57]} 40. Re7 {[%clk 0:00:16]}  h6 {[%clk 0:00:49]} 41. f5 {[%clk 0:00:16]}  Be3 {[%clk 0:00:50]} 42. Kf3 {[%clk 0:00:15]}  Bg5 {[%clk 0:00:50]} 43. Rxg7 {[%clk 0:00:15]}  Ka8 {[%clk 0:00:48]} 44. Rxc7 {[%clk 0:00:13]}  Rxc7 {[%clk 0:00:47]} 45. Nxc7+ {[%clk 0:00:14]}  Kxa7 {[%clk 0:00:48]} 46. Nb5+ {[%clk 0:00:14]}  Kb7 {[%clk 0:00:48]} 47. Nxd6+ {[%clk 0:00:14]}  Kc7 {[%clk 0:00:49]} 48. Ne4 {[%clk 0:00:14]}  Be7 {[%clk 0:00:47]} 49. Kg4 {[%clk 0:00:13]}  Bf8 {[%clk 0:00:47]} 50. f6 {[%clk 0:00:13]}  Kd7 {[%clk 0:00:46]} 51. Kf5 {[%clk 0:00:14]}  Ke8 {[%clk 0:00:46]} 52. Ke6 {[%clk 0:00:14]}  Bb4 {[%clk 0:00:45]} 53. d6 {[%clk 0:00:14]}  Ba3 {[%clk 0:00:44]} 54. f7+ {[%clk 0:00:14]}  Kf8 {[%clk 0:00:44]} 55. Nf6 {[%clk 0:00:15]}  b5 {[%clk 0:00:43]} 56. Nd7+ {[%clk 0:00:15]}  Kg7 {[%clk 0:00:40]} 57. f8=Q+ {[%clk 0:00:15]} 1-0

[Event "January 2 Early 2024"]
[Site "https://www.chess.com"]
[Date "2024.01.02"]
[Round "7"]
[White "Daurimbetov, Azamat"]
[Black "Shadhursshaan R"]
[Result "1/2-1/2"]
[Board "162"]
[TimeControl "180+1"]
[WhiteFideId "14201950"]
[BlackFideId "45024138"]
[WhiteElo "2240"]
[BlackElo "2392"]
[WhiteTeam "UZB"]
[BlackTeam "IND"]
[WhiteClock "0:00:12"]
[BlackClock "0:03:08"]

1. Nf3 {[%clk 0:02:53]}  a6 {[%clk 0:02:52]} 2. c4 {[%clk 0:02:54]}  b6 {[%clk 0:02:51]} 3. d4 {[%clk 0:02:53]}  Bb7 {[%clk 0:02:52]} 4. Nc3 {[%clk 0:02:53]}  g6 {[%clk 0:02:53]} 5. e4 {[%clk 0:02:53]}  Bg7 {[%clk 0:02:53]} 6. d5 {[%clk 0:02:51]}  d6 {[%clk 0:02:53]} 7. Be3 {[%clk 0:02:48]}  Nd7 {[%clk 0:02:53]} 8. Be2 {[%clk 0:02:48]}  Ngf6 {[%clk 0:02:54]} 9. O-O {[%clk 0:02:48]}  O-O {[%clk 0:02:55]} 10. b4 {[%clk 0:02:47]}  c5 {[%clk 0:02:54]} 11. dxc6 {[%clk 0:02:33]}  Nc5 {[%clk 0:02:55]} 12. bxc5 {[%clk 0:02:33]}  Bxc6 {[%clk 0:02:51]} 13. cxb6 {[%clk 0:02:13]}  Ng4 {[%clk 0:02:51]} 14. Bd4 {[%clk 0:02:10]}  e5 {[%clk 0:02:51]} 15. Be3 {[%clk 0:02:06]}  Nxe3 {[%clk 0:02:52]} 16. fxe3 {[%clk 0:02:07]}  Qxb6 {[%clk 0:02:53]} 17. Qd2 {[%clk 0:02:03]}  Bh6 {[%clk 0:02:53]} 18. Kf2 {[%clk 0:01:58]}  f5 {[%clk 0:02:52]} 19. Nd5 {[%clk 0:01:51]}  Qc5 {[%clk 0:02:47]} 20. Ne7+ {[%clk 0:01:48]}  Kh8 {[%clk 0:02:46]} 21. Nxc6 {[%clk 0:01:45]}  fxe4 {[%clk 0:02:47]} 22. Ne7 {[%clk 0:01:36]}  exf3 {[%clk 0:02:47]} 23. gxf3 {[%clk 0:01:36]}  e4 {[%clk 0:02:47]} 24. f4 {[%clk 0:01:33]}  Rxf4+ {[%clk 0:02:46]} 25. Kg2 {[%clk 0:01:25]}  Qg5+ {[%clk 0:02:46]} 26. Kh1 {[%clk 0:01:17]}  Rxf1+ {[%clk 0:02:47]} 27. Rxf1 {[%clk 0:01:17]}  Qxe7 {[%clk 0:02:47]} 28. Qd4+ {[%clk 0:01:10]}  Bg7 {[%clk 0:02:47]} 29. Qd5 {[%clk 0:01:11]}  Rf8 {[%clk 0:02:46]} 30. Rxf8+ {[%clk 0:01:00]}  Bxf8 {[%clk 0:02:47]} 31. Bg4 {[%clk 0:00:59]}  Bh6 {[%clk 0:02:45]} 32. Qd4+ {[%clk 0:00:56]}  Bg7 {[%clk 0:02:44]} 33. Qd5 {[%clk 0:00:52]}  Qf6 {[%clk 0:02:44]} 34. Qa8+ {[%clk 0:00:41]}  Bf8 {[%clk 0:02:43]} 35. Kg2 {[%clk 0:00:41]}  Qe7 {[%clk 0:02:40]} 36. Qxa6 {[%clk 0:00:38]}  Bh6 {[%clk 0:02:40]} 37. Qc8+ {[%clk 0:00:32]}  Kg7 {[%clk 0:02:39]} 38. Qd7 {[%clk 0:00:31]}  Qxd7 {[%clk 0:02:40]} 39. Bxd7 {[%clk 0:00:32]}  Bxe3 {[%clk 0:02:40]} 40. Bc6 {[%clk 0:00:33]}  Kf6 {[%clk 0:02:40]} 41. Bxe4 {[%clk 0:00:33]}  Ke5 {[%clk 0:02:41]} 42. Bd5 {[%clk 0:00:31]}  h5 {[%clk 0:02:40]} 43. Kf3 {[%clk 0:00:31]}  Bd4 {[%clk 0:02:38]} 44. a4 {[%clk 0:00:31]}  g5 {[%clk 0:02:38]} 45. a5 {[%clk 0:00:31]}  g4+ {[%clk 0:02:38]} 46. Kg2 {[%clk 0:00:30]}  Kf4 {[%clk 0:02:38]} 47. h3 {[%clk 0:00:20]}  Ba7 {[%clk 0:02:32]} 48. hxg4 {[%clk 0:00:18]}  hxg4 {[%clk 0:02:32]} 49. a6 {[%clk 0:00:18]}  g3 {[%clk 0:02:33]} 50. Bb7 {[%clk 0:00:17]}  Bf2 {[%clk 0:02:34]} 51. Bc6 {[%clk 0:00:17]}  Ke5 {[%clk 0:02:34]} 52. Kf3 {[%clk 0:00:16]}  Ke6 {[%clk 0:02:32]} 53. Bd5+ {[%clk 0:00:09]}  Kd7 {[%clk 0:02:32]} 54. Kg2 {[%clk 0:00:10]}  Kc7 {[%clk 0:02:33]} 55. Kf3 {[%clk 0:00:10]}  Kb6 {[%clk 0:02:33]} 56. Bb7 {[%clk 0:00:10]}  Ka5 {[%clk 0:02:31]} 57. Kg2 {[%clk 0:00:09]}  Kb4 {[%clk 0:02:31]} 58. Bd5 {[%clk 0:00:08]}  Kc3 {[%clk 0:02:31]} 59. Kf3 {[%clk 0:00:09]}  Kd2 {[%clk 0:02:32]} 60. Kg2 {[%clk 0:00:09]}  Ke1 {[%clk 0:02:33]} 61. Bb7 {[%clk 0:00:10]}  Ke2 {[%clk 0:02:32]} 62. Bf3+ {[%clk 0:00:10]}  Ke1 {[%clk 0:02:33]} 63. Bd5 {[%clk 0:00:11]}  Kd2 {[%clk 0:02:33]} 64. Bb7 {[%clk 0:00:12]}  Kc3 {[%clk 0:02:34]} 65. Bd5 {[%clk 0:00:12]}  Kb4 {[%clk 0:02:35]} 66. Kf3 {[%clk 0:00:13]}  Ka5 {[%clk 0:02:35]} 67. Bb7 {[%clk 0:00:14]}  Kb6 {[%clk 0:02:35]} 68. Kg2 {[%clk 0:00:14]}  Kc7 {[%clk 0:02:36]} 69. Bd5 {[%clk 0:00:14]}  Kd8 {[%clk 0:02:37]} 70. Bb7 {[%clk 0:00:15]}  Ke8 {[%clk 0:02:38]} 71. Kf1 {[%clk 0:00:12]}  Kf7 {[%clk 0:02:38]} 72. Ke2 {[%clk 0:00:12]}  Kg6 {[%clk 0:02:39]} 73. Kd3 {[%clk 0:00:11]}  Kg5 {[%clk 0:02:39]} 74. Bg2 {[%clk 0:00:11]}  Kf4 {[%clk 0:02:38]} 75. Ke2 {[%clk 0:00:07]}  Kg4 {[%clk 0:02:38]} 76. Kf1 {[%clk 0:00:06]}  Ba7 {[%clk 0:02:38]} 77. Ke2 {[%clk 0:00:02]}  Kf4 {[%clk 0:02:38]} 78. Bd5 {[%clk 0:00:03]}  Kg4 {[%clk 0:02:38]} 79. Kf1 {[%clk 0:00:03]}  Kh3 {[%clk 0:02:39]} 80. Bg2+ {[%clk 0:00:04]}  Kh2 {[%clk 0:02:39]} 81. Bd5 {[%clk 0:00:05]}  Bb6 {[%clk 0:02:38]} 82. Bg2 {[%clk 0:00:05]}  Ba7 {[%clk 0:02:39]} 83. Bd5 {[%clk 0:00:06]}  Kh3 {[%clk 0:02:40]} 84. Bg2+ {[%clk 0:00:07]}  Kg4 {[%clk 0:02:41]} 85. Bd5 {[%clk 0:00:07]}  Kf4 {[%clk 0:02:42]} 86. Kg2 {[%clk 0:00:08]}  Ke3 {[%clk 0:02:42]} 87. Kxg3 {[%clk 0:00:08]}  Kd4 {[%clk 0:02:43]} 88. Kg4 {[%clk 0:00:08]}  Kc5 {[%clk 0:02:44]} 89. Kf5 {[%clk 0:00:09]}  Kb6 {[%clk 0:02:45]} 90. Bb7 {[%clk 0:00:10]}  Kc5 {[%clk 0:02:45]} 91. Bd5 {[%clk 0:00:10]}  Kb6 {[%clk 0:02:46]} 92. Ke6 {[%clk 0:00:11]}  Kc7 {[%clk 0:02:44]} 93. Bb7 {[%clk 0:00:09]}  Bc5 {[%clk 0:02:45]} 94. Kd5 {[%clk 0:00:09]}  Kb6 {[%clk 0:02:45]} 95. Ke6 {[%clk 0:00:09]}  Ka7 {[%clk 0:02:46]} 96. Kd7 {[%clk 0:00:09]}  Kb8 {[%clk 0:02:47]} 97. Kc6 {[%clk 0:00:10]}  Bb4 {[%clk 0:02:47]} 98. Kb5 {[%clk 0:00:08]}  Ba3 {[%clk 0:02:48]} 99. Bd5 {[%clk 0:00:09]}  Bc5 {[%clk 0:02:48]} 100. Bf3 {[%clk 0:00:08]}  Kc7 {[%clk 0:02:49]} 101. Bg4 {[%clk 0:00:07]}  Ba7 {[%clk 0:02:50]} 102. Bd1 {[%clk 0:00:06]}  Bc5 {[%clk 0:02:50]} 103. Be2 {[%clk 0:00:06]}  Ba7 {[%clk 0:02:51]} 104. Bf3 {[%clk 0:00:06]}  Bc5 {[%clk 0:02:52]} 105. Bb7 {[%clk 0:00:06]}  Ba7 {[%clk 0:02:53]} 106. Kb4 {[%clk 0:00:06]}  Bc5+ {[%clk 0:02:54]} 107. Kc3 {[%clk 0:00:07]}  Ba7 {[%clk 0:02:55]} 108. Kd3 {[%clk 0:00:08]}  Bc5 {[%clk 0:02:56]} 109. Ke4 {[%clk 0:00:08]}  Ba7 {[%clk 0:02:54]} 110. Kd5 {[%clk 0:00:09]}  Bc5 {[%clk 0:02:55]} 111. Ke6 {[%clk 0:00:10]}  Ba7 {[%clk 0:02:56]} 112. Be4 {[%clk 0:00:10]}  Bc5 {[%clk 0:02:57]} 113. Bb7 {[%clk 0:00:11]}  Ba7 {[%clk 0:02:58]} 114. Kf7 {[%clk 0:00:12]}  Bc5 {[%clk 0:02:59]} 115. Ke7 {[%clk 0:00:12]}  Ba7 {[%clk 0:03:00]} 116. Ke6 {[%clk 0:00:13]}  Bc5 {[%clk 0:03:00]} 117. Kf5 {[%clk 0:00:13]}  Ba7 {[%clk 0:03:01]} 118. Kg4 {[%clk 0:00:14]}  Bc5 {[%clk 0:03:02]} 119. Kf3 {[%clk 0:00:15]}  Ba7 {[%clk 0:03:03]} 120. Ke2 {[%clk 0:00:15]}  Kb6 {[%clk 0:03:04]} 121. Kd3 {[%clk 0:00:16]}  Kc5 {[%clk 0:03:04]} 122. Kc3 {[%clk 0:00:16]}  Bb6 {[%clk 0:03:05]} 123. Bd5 {[%clk 0:00:17]}  Ba7 {[%clk 0:03:06]} 124. Kb3 {[%clk 0:00:17]}  Bb6 {[%clk 0:03:06]} 125. Ka4 {[%clk 0:00:17]}  Ba7 {[%clk 0:03:07]} 126. Ka5 {[%clk 0:00:18]}  Bb6+ {[%clk 0:03:07]} 127. Ka4 {[%clk 0:00:18]}  Ba7 {[%clk 0:03:08]} 128. Kb3 {[%clk 0:00:17]}  Bb6 {[%clk 0:03:08]} 129. Kc3 {[%clk 0:00:17]}  Ba7 {[%clk 0:03:09]} 130. Kd3 {[%clk 0:00:18]}  Kb6 {[%clk 0:03:10]} 131. Bb7 {[%clk 0:00:18]}  Kc5 {[%clk 0:03:10]} 132. Kc3 {[%clk 0:00:17]}  Kb6 {[%clk 0:03:11]} 133. Kd4 {[%clk 0:00:17]}  Kc7+ {[%clk 0:03:08]} 134. Kd5 {[%clk 0:00:18]}  Bb8 {[%clk 0:03:07]} 135. Ke6 {[%clk 0:00:12]}  Ba7 {[%clk 0:03:08]} 1/2-1/2

[Event "January 2 Early 2024"]
[Site "https://www.chess.com"]
[Date "2024.01.02"]
[Round "7"]
[White "Samaganova, Aleksandra"]
[Black "Dargan, Paul A G"]
[Result "1-0"]
[Board "163"]
[TimeControl "180+1"]
[WhiteFideId "13800221"]
[BlackFideId "416762"]
[WhiteElo "2389"]
[BlackElo "2207"]
[WhiteTeam "KGZ"]
[BlackTeam "ENG"]
[WhiteClock "0:00:06"]
[BlackClock "0:00:11"]

1. c4 {[%clk 0:03:00]}  e5 {[%clk 0:02:58]} 2. Nc3 {[%clk 0:02:59]}  Nc6 {[%clk 0:02:57]} 3. g3 {[%clk 0:02:58]}  Bc5 {[%clk 0:02:56]} 4. Bg2 {[%clk 0:02:58]}  d6 {[%clk 0:02:56]} 5. e3 {[%clk 0:02:58]}  a6 {[%clk 0:02:55]} 6. Nge2 {[%clk 0:02:58]}  Be6 {[%clk 0:02:51]} 7. d4 {[%clk 0:02:58]}  exd4 {[%clk 0:02:35]} 8. exd4 {[%clk 0:02:59]}  Nxd4 {[%clk 0:02:27]} 9. Nxd4 {[%clk 0:02:59]}  Bxc4 {[%clk 0:02:26]} 10. Qa4+ {[%clk 0:02:01]}  b5 {[%clk 0:02:11]} 11. Ndxb5 {[%clk 0:01:51]}  Qe7+ {[%clk 0:01:40]} 12. Kd1 {[%clk 0:01:29]}  Bxb5 {[%clk 0:01:04]} 13. Nxb5 {[%clk 0:01:22]}  Bxf2 {[%clk 0:00:32]} 14. Nxc7+ {[%clk 0:00:59]}  Kf8 {[%clk 0:00:32]} 15. Nxa8 {[%clk 0:00:54]}  Nf6 {[%clk 0:00:32]} 16. Bg5 {[%clk 0:00:37]}  h6 {[%clk 0:00:32]} 17. Bxf6 {[%clk 0:00:34]}  Qxf6 {[%clk 0:00:32]} 18. Qb4 {[%clk 0:00:20]}  Kg8 {[%clk 0:00:28]} 19. Rf1 {[%clk 0:00:16]}  Qf5 {[%clk 0:00:25]} 20. Qd2 {[%clk 0:00:12]}  Qg4+ {[%clk 0:00:21]} 21. Kc2 {[%clk 0:00:10]}  Bc5 {[%clk 0:00:18]} 22. Bf3 {[%clk 0:00:06]}  Qc4+ {[%clk 0:00:17]} 23. Qc3 {[%clk 0:00:06]}  Qa4+ {[%clk 0:00:17]} 24. b3 {[%clk 0:00:06]}  Qb5 {[%clk 0:00:16]} 25. Rad1 {[%clk 0:00:06]}  Kh7 {[%clk 0:00:15]} 26. Be4+ {[%clk 0:00:05]}  g6 {[%clk 0:00:15]} 27. Nc7 {[%clk 0:00:05]}  Rf8 {[%clk 0:00:13]} 28. Nxb5 {[%clk 0:00:05]}  axb5 {[%clk 0:00:13]} 29. Qf6 {[%clk 0:00:05]}  Bd4 {[%clk 0:00:12]} 30. Bxg6+ {[%clk 0:00:05]}  fxg6 {[%clk 0:00:11]} 31. Qxf8 {[%clk 0:00:05]}  Bg7 {[%clk 0:00:11]} 32. Rf7 {[%clk 0:00:05]}  h5 {[%clk 0:00:11]} 33. Qxg7# {[%clk 0:00:06]} 1-0

[Event "January 2 Early 2024"]
[Site "https://www.chess.com"]
[Date "2024.01.02"]
[Round "7"]
[White "th3d4rkness"]
[Black "Schuh, Karsten"]
[Result "1/2-1/2"]
[Board "167"]
[TimeControl "180+1"]
[BlackFideId "4637950"]
[WhiteElo "2141"]
[BlackElo "2375"]
[BlackTeam "GER"]
[WhiteClock "0:00:06"]
[BlackClock "0:00:05"]

1. d4 {[%clk 0:03:00]}  f5 {[%clk 0:02:59]} 2. Nc3 {[%clk 0:02:58]}  d5 {[%clk 0:02:58]} 3. Bg5 {[%clk 0:02:49]}  Nf6 {[%clk 0:02:57]} 4. Bxf6 {[%clk 0:02:49]}  exf6 {[%clk 0:02:57]} 5. e3 {[%clk 0:02:49]}  Be6 {[%clk 0:02:57]} 6. Bd3 {[%clk 0:02:46]}  Nc6 {[%clk 0:02:53]} 7. a3 {[%clk 0:02:45]}  Qd7 {[%clk 0:02:53]} 8. Qf3 {[%clk 0:02:41]}  g6 {[%clk 0:02:47]} 9. h4 {[%clk 0:02:37]}  h5 {[%clk 0:02:46]} 10. Nge2 {[%clk 0:02:37]}  Bf7 {[%clk 0:02:44]} 11. Nf4 {[%clk 0:02:31]}  O-O-O {[%clk 0:02:43]} 12. O-O-O {[%clk 0:02:28]}  a6 {[%clk 0:02:36]} 13. Kb1 {[%clk 0:02:25]}  Bh6 {[%clk 0:02:35]} 14. Be2 {[%clk 0:02:19]}  Rhe8 {[%clk 0:02:21]} 15. Nd3 {[%clk 0:02:18]}  Qd6 {[%clk 0:02:08]} 16. Nc5 {[%clk 0:02:14]}  Kb8 {[%clk 0:01:54]} 17. g3 {[%clk 0:02:09]}  Na7 {[%clk 0:01:52]} 18. Bd3 {[%clk 0:02:03]}  Nc8 {[%clk 0:01:48]} 19. Qe2 {[%clk 0:01:59]}  Qb6 {[%clk 0:01:42]} 20. N3a4 {[%clk 0:01:55]}  Qc6 {[%clk 0:01:41]} 21. Nc3 {[%clk 0:01:41]}  Nd6 {[%clk 0:01:39]} 22. Rhe1 {[%clk 0:01:37]}  Ne4 {[%clk 0:01:34]} 23. Na2 {[%clk 0:01:31]}  Nxc5 {[%clk 0:01:30]} 24. Nb4 {[%clk 0:01:17]}  Qb6 {[%clk 0:01:16]} 25. dxc5 {[%clk 0:01:16]}  Qxc5 {[%clk 0:01:14]} 26. Bxa6 {[%clk 0:01:17]}  Qb6 {[%clk 0:01:07]} 27. Bb5 {[%clk 0:01:09]}  c6 {[%clk 0:01:07]} 28. Ba4 {[%clk 0:01:09]}  Bf8 {[%clk 0:00:54]} 29. c3 {[%clk 0:01:00]}  Re4 {[%clk 0:00:50]} 30. Bc2 {[%clk 0:00:57]}  Ree8 {[%clk 0:00:46]} 31. Ka1 {[%clk 0:00:50]}  c5 {[%clk 0:00:36]} 32. Nd3 {[%clk 0:00:46]}  d4 {[%clk 0:00:29]} 33. Qd2 {[%clk 0:00:37]}  c4 {[%clk 0:00:20]} 34. cxd4 {[%clk 0:00:20]}  cxd3 {[%clk 0:00:18]} 35. Bxd3 {[%clk 0:00:20]}  Rc8 {[%clk 0:00:16]} 36. Rc1 {[%clk 0:00:20]}  Rxc1+ {[%clk 0:00:14]} 37. Rxc1 {[%clk 0:00:20]}  Rc8 {[%clk 0:00:14]} 38. Rxc8+ {[%clk 0:00:19]}  Kxc8 {[%clk 0:00:15]} 39. Qc3+ {[%clk 0:00:19]}  Qc6 {[%clk 0:00:13]} 40. Qxc6+ {[%clk 0:00:19]}  bxc6 {[%clk 0:00:13]} 41. b4 {[%clk 0:00:19]}  Bd5 {[%clk 0:00:13]} 42. Kb2 {[%clk 0:00:19]}  Kb7 {[%clk 0:00:13]} 43. Kc3 {[%clk 0:00:19]}  Kb6 {[%clk 0:00:13]} 44. Be2 {[%clk 0:00:18]}  Bd6 {[%clk 0:00:13]} 45. Bd3 {[%clk 0:00:18]}  Be6 {[%clk 0:00:12]} 46. Be2 {[%clk 0:00:18]}  Be7 {[%clk 0:00:11]} 47. Bd3 {[%clk 0:00:19]}  g5 {[%clk 0:00:11]} 48. Be2 {[%clk 0:00:15]}  f4 {[%clk 0:00:11]} 49. Bxh5 {[%clk 0:00:13]}  fxg3 {[%clk 0:00:11]} 50. fxg3 {[%clk 0:00:14]}  gxh4 {[%clk 0:00:10]} 51. gxh4 {[%clk 0:00:13]}  f5 {[%clk 0:00:11]} 52. Bf3 {[%clk 0:00:11]}  Bxh4 {[%clk 0:00:11]} 53. e4 {[%clk 0:00:11]}  fxe4 {[%clk 0:00:10]} 54. Bxe4 {[%clk 0:00:11]}  Bd5 {[%clk 0:00:10]} 55. Bd3 {[%clk 0:00:11]}  Be1+ {[%clk 0:00:10]} 56. Kc2 {[%clk 0:00:09]}  Bf2 {[%clk 0:00:10]} 57. Kc3 {[%clk 0:00:09]}  Be3 {[%clk 0:00:09]} 58. Be2 {[%clk 0:00:09]}  Bc1 {[%clk 0:00:09]} 59. a4 {[%clk 0:00:08]}  Be3 {[%clk 0:00:09]} 60. a5+ {[%clk 0:00:08]}  Kb7 {[%clk 0:00:08]} 61. Bd3 {[%clk 0:00:08]}  Bf2 {[%clk 0:00:07]} 62. b5 {[%clk 0:00:08]}  Be1+ {[%clk 0:00:07]} 63. Kc2 {[%clk 0:00:05]}  Bxa5 {[%clk 0:00:06]} 64. bxc6+ {[%clk 0:00:05]}  Kxc6 {[%clk 0:00:06]} 65. Bf5 {[%clk 0:00:04]}  Kb5 {[%clk 0:00:05]} 66. Bd3+ {[%clk 0:00:04]}  Kc6 {[%clk 0:00:05]} 67. Be2 {[%clk 0:00:04]}  Kd6 {[%clk 0:00:06]} 68. Bd3 {[%clk 0:00:05]}  Bb6 {[%clk 0:00:04]} 69. Kc3 {[%clk 0:00:04]}  Ba5+ {[%clk 0:00:05]} 70. Kc2 {[%clk 0:00:05]}  Bb6 {[%clk 0:00:05]} 71. Kc3 {[%clk 0:00:05]}  Ba5+ {[%clk 0:00:05]} 72. Kc2 {[%clk 0:00:06]} 1/2-1/2